[Event "Titled Tuesday Blitz April 19 Early 2022"]
[White "Rottenwohrer Suarez, Juan"]
[Black "Marczuk, Dominik"]
[WhiteFideId "32068182"]
[BlackFideId "1111264"]
[WhiteElo "2158"]
[BlackElo "1912"]
[Result "0-1"]
[Round "09"]
[TimeControl "180+1"]
[Date "2022.04.19"]
[WhiteClock "0:00:03"]
[BlackClock "0:00:12"]

1. d4 {[%clk 0:03:00]}  Nf6 {[%clk 0:02:51]} 2. c4 {[%clk 0:03:01]}  g6 {[%clk 0:02:51]} 3. g3 {[%clk 0:03:00]}  Bg7 {[%clk 0:02:51]} 4. Bg2 {[%clk 0:03:01]}  O-O {[%clk 0:02:51]} 5. Nc3 {[%clk 0:03:00]}  d6 {[%clk 0:02:51]} 6. Nf3 {[%clk 0:03:00]}  Nbd7 {[%clk 0:02:51]} 7. O-O {[%clk 0:02:46]}  e5 {[%clk 0:02:50]} 8. e4 {[%clk 0:02:43]}  a5 {[%clk 0:02:35]} 9. h3 {[%clk 0:02:35]}  exd4 {[%clk 0:02:34]} 10. Nxd4 {[%clk 0:02:36]}  Nc5 {[%clk 0:02:34]} 11. Be3 {[%clk 0:02:21]}  Re8 {[%clk 0:02:32]} 12. Qc2 {[%clk 0:02:21]}  a4 {[%clk 0:02:13]} 13. Rad1 {[%clk 0:02:19]}  Bd7 {[%clk 0:02:09]} 14. Kh2 {[%clk 0:01:55]}  Ne6 {[%clk 0:01:41]} 15. Nde2 {[%clk 0:01:53]}  Qb8 {[%clk 0:01:21]} 16. f4 {[%clk 0:01:51]}  Bc6 {[%clk 0:01:16]} 17. Nd5 {[%clk 0:01:42]}  Nc5 {[%clk 0:01:12]} 18. e5 {[%clk 0:01:33]}  Nxd5 {[%clk 0:01:05]} 19. cxd5 {[%clk 0:01:29]}  Bb5 {[%clk 0:01:06]} 20. Bxc5 {[%clk 0:00:59]}  dxc5 {[%clk 0:01:07]} 21. Nc3 {[%clk 0:00:59]}  Bxf1 {[%clk 0:01:05]} 22. Rxf1 {[%clk 0:01:00]}  b5 {[%clk 0:01:02]} 23. h4 {[%clk 0:00:53]}  Qb6 {[%clk 0:00:49]} 24. h5 {[%clk 0:00:51]}  Rad8 {[%clk 0:00:38]} 25. Qe2 {[%clk 0:00:43]}  c4 {[%clk 0:00:37]} 26. Ne4 {[%clk 0:00:39]}  Kf8 {[%clk 0:00:31]} 27. Ng5 {[%clk 0:00:37]}  Kg8 {[%clk 0:00:28]} 28. Bh3 {[%clk 0:00:27]}  Bh6 {[%clk 0:00:23]} 29. Ne4 {[%clk 0:00:25]}  Bg7 {[%clk 0:00:24]} 30. hxg6 {[%clk 0:00:17]}  hxg6 {[%clk 0:00:24]} 31. Bg2 {[%clk 0:00:16]}  Qd4 {[%clk 0:00:18]} 32. Nc3 {[%clk 0:00:13]}  b4 {[%clk 0:00:16]} 33. Nb5 {[%clk 0:00:13]}  Qc5 {[%clk 0:00:15]} 34. d6 {[%clk 0:00:03]}  Qxb5 {[%clk 0:00:14]} 35. dxc7 {[%clk 0:00:03]}  Rc8 {[%clk 0:00:14]} 36. e6 {[%clk 0:00:03]}  Rxc7 {[%clk 0:00:13]} 37. exf7+ {[%clk 0:00:03]}  Rxf7 {[%clk 0:00:13]} 38. Qg4 {[%clk 0:00:03]}  Qd7 {[%clk 0:00:12]} 39. Qf3 {[%clk 0:00:03]}  Qe6 {[%clk 0:00:12]} 40. Bh3 {[%clk 0:00:03]}  Qe2+ {[%clk 0:00:12]} 0-1


[Site "https://www.chess.com"]

[Event "Titled Tuesday Blitz April 19 Early 2022"]
[White "Rozman, Levy"]
[Black "Trost, Edvin"]
[WhiteFideId "2039877"]
[BlackFideId "1729519"]
[WhiteElo "2376"]
[BlackElo "2160"]
[Result "0-1"]
[Round "09"]
[TimeControl "180+1"]
[Date "2022.04.19"]
[WhiteClock "0:01:29"]
[BlackClock "0:01:36"]

1. d4 {[%clk 0:03:00]}  d5 {[%clk 0:02:58]} 2. Bf4 {[%clk 0:02:57]}  Nf6 {[%clk 0:02:55]} 3. Nc3 {[%clk 0:02:57]}  g6 {[%clk 0:02:51]} 4. e3 {[%clk 0:02:52]}  Bg7 {[%clk 0:02:52]} 5. Nb5 {[%clk 0:02:52]}  Na6 {[%clk 0:02:51]} 6. h3 {[%clk 0:02:48]}  O-O {[%clk 0:02:51]} 7. Nf3 {[%clk 0:02:48]}  c6 {[%clk 0:02:51]} 8. Nc3 {[%clk 0:02:48]}  Nc7 {[%clk 0:02:51]} 9. Bd3 {[%clk 0:02:48]}  Ne6 {[%clk 0:02:44]} 10. Be5 {[%clk 0:02:48]}  c5 {[%clk 0:02:43]} 11. O-O {[%clk 0:02:42]}  b6 {[%clk 0:02:41]} 12. a4 {[%clk 0:02:41]}  Bb7 {[%clk 0:02:38]} 13. a5 {[%clk 0:02:40]}  Nd7 {[%clk 0:02:33]} 14. Bxg7 {[%clk 0:02:36]}  Kxg7 {[%clk 0:02:34]} 15. a6 {[%clk 0:02:28]}  Bc6 {[%clk 0:02:31]} 16. Nxd5 {[%clk 0:02:23]}  Bxd5 {[%clk 0:02:21]} 17. e4 {[%clk 0:02:22]}  Nxd4 {[%clk 0:02:21]} 18. Nxd4 {[%clk 0:02:18]}  cxd4 {[%clk 0:02:22]} 19. exd5 {[%clk 0:02:19]}  Nf6 {[%clk 0:02:22]} 20. Bc4 {[%clk 0:02:17]}  Nxd5 {[%clk 0:02:19]} 21. Qxd4+ {[%clk 0:02:15]}  Nf6 {[%clk 0:02:19]} 22. Qe3 {[%clk 0:02:13]}  Qc7 {[%clk 0:02:17]} 23. Bb3 {[%clk 0:02:09]}  Rad8 {[%clk 0:02:14]} 24. Rfe1 {[%clk 0:02:09]}  e6 {[%clk 0:02:14]} 25. Ra4 {[%clk 0:02:08]}  h5 {[%clk 0:02:12]} 26. Rc4 {[%clk 0:02:07]}  Qd6 {[%clk 0:02:11]} 27. Qc3 {[%clk 0:02:07]}  Rfe8 {[%clk 0:02:04]} 28. Ba4 {[%clk 0:02:02]}  Re7 {[%clk 0:02:03]} 29. Bc6 {[%clk 0:01:53]}  e5 {[%clk 0:02:02]} 30. b4 {[%clk 0:01:51]}  Qd2 {[%clk 0:02:00]} 31. b5 {[%clk 0:01:46]}  Qd6 {[%clk 0:01:54]} 32. Qa1 {[%clk 0:01:33]}  Ng8 {[%clk 0:01:42]} 33. Rce4 {[%clk 0:01:31]}  f6 {[%clk 0:01:42]} 34. f4 {[%clk 0:01:30]}  exf4 {[%clk 0:01:35]} 35. Rxe7+ {[%clk 0:01:29]}  Nxe7 {[%clk 0:01:36]} 0-1


[Site "https://www.chess.com"]

[Event "Titled Tuesday Blitz April 19 Early 2022"]
[White "Samunenkov, Ihor"]
[Black "Ibarra Jerez, Jose Carlos"]
[WhiteFideId "14187086"]
[BlackFideId "2226332"]
[WhiteElo "2409"]
[BlackElo "2626"]
[Result "0-1"]
[Round "09"]
[TimeControl "180+1"]
[Date "2022.04.19"]
[WhiteClock "0:00:02"]
[BlackClock "0:00:32"]

1. d4 {[%clk 0:02:58]}  Nf6 {[%clk 0:02:59]} 2. c4 {[%clk 0:02:58]}  d6 {[%clk 0:02:59]} 3. Nf3 {[%clk 0:02:47]}  g6 {[%clk 0:02:58]} 4. g3 {[%clk 0:02:45]}  Bf5 {[%clk 0:02:58]} 5. Bg2 {[%clk 0:02:44]}  Bg7 {[%clk 0:02:58]} 6. O-O {[%clk 0:02:43]}  O-O {[%clk 0:02:57]} 7. Nc3 {[%clk 0:02:43]}  Ne4 {[%clk 0:02:57]} 8. Nh4 {[%clk 0:02:30]}  Nxc3 {[%clk 0:02:57]} 9. bxc3 {[%clk 0:02:31]}  Bc8 {[%clk 0:02:57]} 10. e4 {[%clk 0:02:24]}  c5 {[%clk 0:02:56]} 11. Be3 {[%clk 0:02:10]}  Nc6 {[%clk 0:02:52]} 12. f4 {[%clk 0:02:05]}  Na5 {[%clk 0:02:44]} 13. Qd3 {[%clk 0:01:35]}  b6 {[%clk 0:02:43]} 14. e5 {[%clk 0:01:35]}  Ba6 {[%clk 0:02:38]} 15. Rf2 {[%clk 0:01:11]}  Rc8 {[%clk 0:02:30]} 16. Re1 {[%clk 0:00:46]}  Nxc4 {[%clk 0:02:07]} 17. e6 {[%clk 0:00:32]}  f5 {[%clk 0:01:52]} 18. d5 {[%clk 0:00:30]}  Nxe3 {[%clk 0:01:42]} 19. Qxe3 {[%clk 0:00:29]}  b5 {[%clk 0:01:40]} 20. Bf1 {[%clk 0:00:22]}  Qa5 {[%clk 0:01:37]} 21. Rc1 {[%clk 0:00:22]}  b4 {[%clk 0:01:35]} 22. Bxa6 {[%clk 0:00:20]}  Qxa6 {[%clk 0:01:33]} 23. Nf3 {[%clk 0:00:13]}  bxc3 {[%clk 0:01:26]} 24. h4 {[%clk 0:00:09]}  Qc4 {[%clk 0:01:12]} 25. h5 {[%clk 0:00:09]}  gxh5 {[%clk 0:01:07]} 26. Kg2 {[%clk 0:00:05]}  Qxd5 {[%clk 0:01:06]} 27. Rh1 {[%clk 0:00:05]}  Rf6 {[%clk 0:00:56]} 28. Rxh5 {[%clk 0:00:04]}  Rxe6 {[%clk 0:00:56]} 29. Qc1 {[%clk 0:00:03]}  Rb8 {[%clk 0:00:47]} 30. Qh1 {[%clk 0:00:02]}  h6 {[%clk 0:00:45]} 31. Qh3 {[%clk 0:00:02]}  Rb2 {[%clk 0:00:42]} 32. Rxf5 {[%clk 0:00:02]}  Qxa2 {[%clk 0:00:35]} 33. Rf8+ {[%clk 0:00:02]}  Bxf8 {[%clk 0:00:32]} 34. Qxe6+ {[%clk 0:00:02]}  Qxe6 {[%clk 0:00:32]} 0-1


[Site "https://www.chess.com"]

[Event "Titled Tuesday Blitz April 19 Early 2022"]
[White "Sapunov, Evgeny"]
[Black "Hua, Lefong"]
[WhiteFideId "4126661"]
[BlackFideId "2602253"]
[WhiteElo "2470"]
[BlackElo "2604"]
[Result "1-0"]
[Round "09"]
[TimeControl "180+1"]
[Date "2022.04.19"]
[WhiteClock "0:01:41"]
[BlackClock "0:01:40"]

1. c4 {[%clk 0:02:56]}  Nf6 {[%clk 0:03:00]} 2. Nf3 {[%clk 0:02:56]}  g6 {[%clk 0:03:00]} 3. Nc3 {[%clk 0:02:56]}  Bg7 {[%clk 0:03:01]} 4. e4 {[%clk 0:02:56]}  d6 {[%clk 0:03:01]} 5. d4 {[%clk 0:02:57]}  O-O {[%clk 0:03:01]} 6. Be2 {[%clk 0:02:57]}  Bg4 {[%clk 0:03:01]} 7. Be3 {[%clk 0:02:57]}  Nfd7 {[%clk 0:03:01]} 8. Rc1 {[%clk 0:02:57]}  c5 {[%clk 0:03:02]} 9. d5 {[%clk 0:02:56]}  Na6 {[%clk 0:03:02]} 10. O-O {[%clk 0:02:56]}  Nc7 {[%clk 0:02:59]} 11. Re1 {[%clk 0:02:53]}  e6 {[%clk 0:02:53]} 12. dxe6 {[%clk 0:02:49]}  Nxe6 {[%clk 0:02:52]} 13. Qxd6 {[%clk 0:02:49]}  Bxf3 {[%clk 0:02:51]} 14. Bxf3 {[%clk 0:02:47]}  Nd4 {[%clk 0:02:33]} 15. Bxd4 {[%clk 0:02:06]}  Bxd4 {[%clk 0:02:26]} 16. Nd5 {[%clk 0:01:58]}  Bxb2 {[%clk 0:02:06]} 17. Rb1 {[%clk 0:01:57]}  Be5 {[%clk 0:02:03]} 18. Qe7 {[%clk 0:01:44]}  b6 {[%clk 0:02:00]} 19. Bg4 {[%clk 0:01:44]}  Nf6 {[%clk 0:01:40]} 20. Qxe5 {[%clk 0:01:42]}  Nxg4 {[%clk 0:01:40]} 21. Ne7+ {[%clk 0:01:41]} 1-0


[Site "https://www.chess.com"]

[Event "Titled Tuesday Blitz April 19 Early 2022"]
[White "Seo, Jung Min"]
[Black "Aroesti, Roee"]
[WhiteFideId "1734687"]
[BlackFideId "2817144"]
[WhiteElo "2401"]
[BlackElo "2068"]
[Result "1/2-1/2"]
[Round "09"]
[TimeControl "180+1"]
[Date "2022.04.19"]
[WhiteClock "0:01:08"]
[BlackClock "0:00:07"]

1. d4 {[%clk 0:03:00]}  d5 {[%clk 0:02:56]} 2. c4 {[%clk 0:03:01]}  e6 {[%clk 0:02:55]} 3. Nf3 {[%clk 0:03:01]}  Nf6 {[%clk 0:02:54]} 4. Nc3 {[%clk 0:03:01]}  c6 {[%clk 0:02:49]} 5. Bg5 {[%clk 0:02:56]}  Nbd7 {[%clk 0:02:48]} 6. e3 {[%clk 0:02:56]}  Be7 {[%clk 0:02:45]} 7. Bd3 {[%clk 0:02:54]}  O-O {[%clk 0:02:43]} 8. O-O {[%clk 0:02:54]}  b6 {[%clk 0:02:40]} 9. Rc1 {[%clk 0:02:46]}  Bb7 {[%clk 0:02:39]} 10. cxd5 {[%clk 0:02:45]}  cxd5 {[%clk 0:02:36]} 11. Qc2 {[%clk 0:02:41]}  h6 {[%clk 0:02:30]} 12. Bh4 {[%clk 0:02:41]}  Rc8 {[%clk 0:02:24]} 13. Qb1 {[%clk 0:02:41]}  Nb8 {[%clk 0:02:18]} 14. Ne5 {[%clk 0:02:39]}  Nfd7 {[%clk 0:02:13]} 15. Bxe7 {[%clk 0:02:37]}  Qxe7 {[%clk 0:02:13]} 16. Nf3 {[%clk 0:02:34]}  Nc6 {[%clk 0:02:09]} 17. Rfd1 {[%clk 0:02:31]}  Nf6 {[%clk 0:02:03]} 18. Bf1 {[%clk 0:02:24]}  Na5 {[%clk 0:01:51]} 19. Ne2 {[%clk 0:02:23]}  Qd7 {[%clk 0:01:47]} 20. Ne5 {[%clk 0:02:21]}  Qe7 {[%clk 0:01:45]} 21. Nf4 {[%clk 0:02:21]}  Nd7 {[%clk 0:01:43]} 22. Nf3 {[%clk 0:02:19]}  Nf6 {[%clk 0:01:41]} 23. Nd3 {[%clk 0:02:15]}  Nc4 {[%clk 0:01:33]} 24. b3 {[%clk 0:02:14]}  Nd6 {[%clk 0:01:31]} 25. Qb2 {[%clk 0:02:14]}  Rxc1 {[%clk 0:01:28]} 26. Rxc1 {[%clk 0:02:14]}  Nde4 {[%clk 0:01:21]} 27. Nfe5 {[%clk 0:02:10]}  Qd6 {[%clk 0:01:16]} 28. f3 {[%clk 0:02:09]}  Ng5 {[%clk 0:01:13]} 29. h4 {[%clk 0:02:03]}  Ngh7 {[%clk 0:01:13]} 30. Kf2 {[%clk 0:01:57]}  Rc8 {[%clk 0:01:11]} 31. Rxc8+ {[%clk 0:01:56]}  Bxc8 {[%clk 0:01:12]} 32. Qc3 {[%clk 0:01:55]}  Bb7 {[%clk 0:01:11]} 33. g4 {[%clk 0:01:51]}  Nf8 {[%clk 0:01:11]} 34. g5 {[%clk 0:01:47]}  hxg5 {[%clk 0:01:11]} 35. hxg5 {[%clk 0:01:47]}  N6d7 {[%clk 0:01:10]} 36. f4 {[%clk 0:01:47]}  Nxe5 {[%clk 0:01:06]} 37. Nxe5 {[%clk 0:01:43]}  Nd7 {[%clk 0:01:03]} 38. Nf3 {[%clk 0:01:40]}  g6 {[%clk 0:00:53]} 39. Bb5 {[%clk 0:01:38]}  Nb8 {[%clk 0:00:46]} 40. Ne5 {[%clk 0:01:34]}  Kg7 {[%clk 0:00:45]} 41. Qc1 {[%clk 0:01:27]}  Qe7 {[%clk 0:00:34]} 42. Ng4 {[%clk 0:01:23]}  Qd8 {[%clk 0:00:23]} 43. Nf6 {[%clk 0:01:20]}  a6 {[%clk 0:00:15]} 44. Be2 {[%clk 0:01:17]}  Nd7 {[%clk 0:00:14]} 45. Ng4 {[%clk 0:01:17]}  Qc8 {[%clk 0:00:13]} 46. Qh1 {[%clk 0:01:13]}  Qh8 {[%clk 0:00:13]} 47. Qe1 {[%clk 0:01:13]}  Qh4+ {[%clk 0:00:12]} 48. Kf1 {[%clk 0:01:11]}  Qh1+ {[%clk 0:00:10]} 49. Kf2 {[%clk 0:01:08]}  Qh4+ {[%clk 0:00:10]} 50. Kf1 {[%clk 0:01:08]}  Qh1+ {[%clk 0:00:08]} 51. Kf2 {[%clk 0:01:08]}  Qh4+ {[%clk 0:00:07]} 1/2-1/2


[Site "https://www.chess.com"]

[Event "Titled Tuesday Blitz April 19 Early 2022"]
[White "Sharafiev, Azat"]
[Black "Shipov, Sergei"]
[WhiteFideId "4186214"]
[BlackFideId "4113624"]
[WhiteElo "2299"]
[BlackElo "2765"]
[Result "1/2-1/2"]
[Round "09"]
[TimeControl "180+1"]
[Date "2022.04.19"]
[WhiteClock "0:00:39"]
[BlackClock "0:00:15"]

1. d4 {[%clk 0:02:55]}  d5 {[%clk 0:02:59]} 2. Nf3 {[%clk 0:02:54]}  e6 {[%clk 0:02:58]} 3. Bf4 {[%clk 0:02:51]}  Bd6 {[%clk 0:02:55]} 4. Bg3 {[%clk 0:02:49]}  Nf6 {[%clk 0:02:52]} 5. e3 {[%clk 0:02:47]}  c5 {[%clk 0:02:51]} 6. c3 {[%clk 0:02:45]}  O-O {[%clk 0:02:48]} 7. Bd3 {[%clk 0:02:45]}  Qc7 {[%clk 0:02:47]} 8. Nbd2 {[%clk 0:02:44]}  Nbd7 {[%clk 0:02:45]} 9. Bxd6 {[%clk 0:02:36]}  Qxd6 {[%clk 0:02:45]} 10. e4 {[%clk 0:02:28]}  cxd4 {[%clk 0:02:39]} 11. Nxd4 {[%clk 0:02:16]}  Nc5 {[%clk 0:02:38]} 12. Qe2 {[%clk 0:02:16]}  dxe4 {[%clk 0:02:33]} 13. Nxe4 {[%clk 0:02:13]}  Nxd3+ {[%clk 0:02:04]} 14. Qxd3 {[%clk 0:02:13]}  Nxe4 {[%clk 0:02:04]} 15. Qxe4 {[%clk 0:02:13]}  e5 {[%clk 0:02:03]} 16. Nf5 {[%clk 0:01:42]}  Bxf5 {[%clk 0:01:25]} 17. Qxf5 {[%clk 0:01:42]}  Rad8 {[%clk 0:01:25]} 18. O-O {[%clk 0:01:40]}  Rd7 {[%clk 0:01:17]} 19. g3 {[%clk 0:01:34]}  Rfd8 {[%clk 0:01:17]} 20. Rfe1 {[%clk 0:01:34]}  f6 {[%clk 0:01:17]} 21. Re2 {[%clk 0:01:33]}  Qc6 {[%clk 0:01:13]} 22. Qe4 {[%clk 0:01:25]}  Qxe4 {[%clk 0:00:48]} 23. Rxe4 {[%clk 0:01:25]}  Rd2 {[%clk 0:00:48]} 24. Rb4 {[%clk 0:01:23]}  b6 {[%clk 0:00:48]} 25. a4 {[%clk 0:01:13]}  Rc2 {[%clk 0:00:45]} 26. a5 {[%clk 0:00:53]}  bxa5 {[%clk 0:00:26]} 27. Rb7 {[%clk 0:00:45]}  Rdd2 {[%clk 0:00:23]} 28. Rxa5 {[%clk 0:00:41]}  Rxf2 {[%clk 0:00:20]} 29. Raxa7 {[%clk 0:00:40]}  Rg2+ {[%clk 0:00:19]} 30. Kf1 {[%clk 0:00:40]}  Rgf2+ {[%clk 0:00:19]} 31. Ke1 {[%clk 0:00:40]}  Rfe2+ {[%clk 0:00:19]} 32. Kf1 {[%clk 0:00:39]}  Rf2+ {[%clk 0:00:19]} 33. Ke1 {[%clk 0:00:39]}  Rfe2+ {[%clk 0:00:15]} 34. Kf1 {[%clk 0:00:39]}  Rf2+ {[%clk 0:00:15]} 1/2-1/2


[Site "https://www.chess.com"]

[Event "Titled Tuesday Blitz April 19 Early 2022"]
[White "Shimanov, Aleksandr"]
[Black "Aradhya, Garg"]
[WhiteFideId "4198603"]
[BlackFideId "25006746"]
[WhiteElo "2636"]
[BlackElo "2169"]
[Result "1-0"]
[Round "09"]
[TimeControl "180+1"]
[Date "2022.04.19"]
[WhiteClock "0:00:42"]
[BlackClock "0:00:46"]

1. d4 {[%clk 0:03:00]}  d5 {[%clk 0:02:56]} 2. Nc3 {[%clk 0:03:00]}  Nf6 {[%clk 0:02:56]} 3. Bf4 {[%clk 0:03:00]}  c5 {[%clk 0:02:56]} 4. e4 {[%clk 0:03:00]}  Nxe4 {[%clk 0:02:54]} 5. Nxe4 {[%clk 0:02:59]}  dxe4 {[%clk 0:02:54]} 6. dxc5 {[%clk 0:03:00]}  Qa5+ {[%clk 0:02:54]} 7. c3 {[%clk 0:03:00]}  Qxc5 {[%clk 0:02:54]} 8. Qa4+ {[%clk 0:03:00]}  Nc6 {[%clk 0:02:54]} 9. Qxe4 {[%clk 0:02:59]}  Bf5 {[%clk 0:02:54]} 10. Qa4 {[%clk 0:02:59]}  O-O-O {[%clk 0:02:40]} 11. Nf3 {[%clk 0:02:43]}  Qa5 {[%clk 0:02:35]} 12. Qb3 {[%clk 0:02:36]}  Be6 {[%clk 0:02:33]} 13. Bc4 {[%clk 0:02:23]}  Bxc4 {[%clk 0:02:32]} 14. Qxc4 {[%clk 0:02:24]}  Qd5 {[%clk 0:02:30]} 15. Qe2 {[%clk 0:02:23]}  Qd3 {[%clk 0:02:30]} 16. Qxd3 {[%clk 0:02:23]}  Rxd3 {[%clk 0:02:30]} 17. Ke2 {[%clk 0:02:23]}  Rd7 {[%clk 0:02:29]} 18. Rhd1 {[%clk 0:02:13]}  Rxd1 {[%clk 0:02:26]} 19. Rxd1 {[%clk 0:02:12]}  f6 {[%clk 0:02:26]} 20. Nd4 {[%clk 0:01:59]}  Nxd4+ {[%clk 0:02:25]} 21. cxd4 {[%clk 0:01:59]}  e6 {[%clk 0:02:00]} 22. Rc1+ {[%clk 0:01:58]}  Kd8 {[%clk 0:02:01]} 23. Bg3 {[%clk 0:01:59]}  h5 {[%clk 0:01:55]} 24. h4 {[%clk 0:01:58]}  g5 {[%clk 0:01:47]} 25. hxg5 {[%clk 0:01:55]}  fxg5 {[%clk 0:01:47]} 26. Rc7 {[%clk 0:01:53]}  h4 {[%clk 0:01:28]} 27. Be5 {[%clk 0:01:52]}  h3 {[%clk 0:01:29]} 28. gxh3 {[%clk 0:01:49]}  Rxh3 {[%clk 0:01:28]} 29. Rxb7 {[%clk 0:01:49]}  Rh1 {[%clk 0:01:23]} 30. Rxa7 {[%clk 0:01:43]}  Rb1 {[%clk 0:01:22]} 31. Rb7 {[%clk 0:01:41]}  g4 {[%clk 0:01:18]} 32. a4 {[%clk 0:01:32]}  Ra1 {[%clk 0:01:16]} 33. b3 {[%clk 0:01:22]}  Ra2+ {[%clk 0:01:15]} 34. Kf1 {[%clk 0:01:21]}  Be7 {[%clk 0:01:02]} 35. Rb8+ {[%clk 0:00:53]}  Kd7 {[%clk 0:01:01]} 36. Rg8 {[%clk 0:00:54]}  Bh4 {[%clk 0:00:50]} 37. Rxg4 {[%clk 0:00:54]}  Bxf2 {[%clk 0:00:48]} 38. Rg2 {[%clk 0:00:53]}  Ra3 {[%clk 0:00:41]} 39. Rxf2 {[%clk 0:00:52]}  Rxb3 {[%clk 0:00:41]} 40. Ra2 {[%clk 0:00:53]}  Kc6 {[%clk 0:00:40]} 41. a5 {[%clk 0:00:53]}  Rb8 {[%clk 0:00:40]} 42. a6 {[%clk 0:00:53]}  Ra8 {[%clk 0:00:40]} 43. Ke2 {[%clk 0:00:53]}  Kb6 {[%clk 0:00:41]} 44. a7 {[%clk 0:00:51]}  Rxa7 {[%clk 0:00:41]} 45. Rxa7 {[%clk 0:00:51]}  Kxa7 {[%clk 0:00:41]} 46. Kf3 {[%clk 0:00:52]}  Kb7 {[%clk 0:00:42]} 47. Kg4 {[%clk 0:00:53]}  Kc6 {[%clk 0:00:43]} 48. Kg5 {[%clk 0:00:54]}  Kd7 {[%clk 0:00:44]} 49. Kf6 {[%clk 0:00:55]}  Ke8 {[%clk 0:00:44]} 50. Kxe6 {[%clk 0:00:55]}  Kf8 {[%clk 0:00:45]} 51. d5 {[%clk 0:00:56]}  Kg8 {[%clk 0:00:46]} 52. d6 {[%clk 0:00:56]}  Kh7 {[%clk 0:00:47]} 53. d7 {[%clk 0:00:56]}  Kg6 {[%clk 0:00:48]} 54. d8=Q {[%clk 0:00:56]}  Kh7 {[%clk 0:00:49]} 55. Qh4+ {[%clk 0:00:46]}  Kg6 {[%clk 0:00:49]} 56. Qg4+ {[%clk 0:00:45]}  Kh6 {[%clk 0:00:47]} 57. Bf4+ {[%clk 0:00:44]}  Kh7 {[%clk 0:00:47]} 58. Qh5+ {[%clk 0:00:43]}  Kg8 {[%clk 0:00:46]} 59. Qg6+ {[%clk 0:00:42]}  Kh8 {[%clk 0:00:46]} 60. Be5# {[%clk 0:00:42]} 1-0


[Site "https://www.chess.com"]

[Event "Titled Tuesday Blitz April 19 Early 2022"]
[White "Shyaamnikhil P"]
[Black "Kamsky, Gata"]
[WhiteFideId "5024218"]
[BlackFideId "2000024"]
[WhiteElo "2329"]
[BlackElo "2645"]
[Result "1/2-1/2"]
[Round "09"]
[TimeControl "180+1"]
[Date "2022.04.19"]
[WhiteClock "0:00:16"]
[BlackClock "0:00:16"]

1. e4 {[%clk 0:03:00]}  e5 {[%clk 0:02:58]} 2. Nf3 {[%clk 0:03:00]}  Nc6 {[%clk 0:02:58]} 3. Bb5 {[%clk 0:02:59]}  Nf6 {[%clk 0:02:56]} 4. O-O {[%clk 0:02:51]}  Nxe4 {[%clk 0:02:55]} 5. d4 {[%clk 0:02:49]}  Nd6 {[%clk 0:02:55]} 6. Bxc6 {[%clk 0:02:49]}  dxc6 {[%clk 0:02:55]} 7. dxe5 {[%clk 0:02:49]}  Nf5 {[%clk 0:02:55]} 8. Qxd8+ {[%clk 0:02:49]}  Kxd8 {[%clk 0:02:55]} 9. Rd1+ {[%clk 0:02:45]}  Ke8 {[%clk 0:02:54]} 10. h3 {[%clk 0:02:37]}  Ne7 {[%clk 0:02:53]} 11. Nc3 {[%clk 0:02:22]}  Ng6 {[%clk 0:02:52]} 12. Ne2 {[%clk 0:02:19]}  Be7 {[%clk 0:02:34]} 13. Bg5 {[%clk 0:02:15]}  Bxg5 {[%clk 0:02:22]} 14. Nxg5 {[%clk 0:02:15]}  Nxe5 {[%clk 0:02:12]} 15. Ng3 {[%clk 0:02:05]}  f6 {[%clk 0:02:05]} 16. Re1 {[%clk 0:02:00]}  h6 {[%clk 0:01:38]} 17. Nf3 {[%clk 0:01:54]}  Kf7 {[%clk 0:01:38]} 18. Nxe5+ {[%clk 0:01:53]}  fxe5 {[%clk 0:01:38]} 19. Rxe5 {[%clk 0:01:54]}  Be6 {[%clk 0:01:36]} 20. Rae1 {[%clk 0:01:51]}  Rhe8 {[%clk 0:01:34]} 21. a3 {[%clk 0:01:42]}  Rad8 {[%clk 0:01:29]} 22. f4 {[%clk 0:01:41]}  Rd2 {[%clk 0:01:15]} 23. R1e2 {[%clk 0:01:33]}  Rxe2 {[%clk 0:01:14]} 24. Rxe2 {[%clk 0:01:34]}  Rd8 {[%clk 0:01:13]} 25. Ne4 {[%clk 0:01:21]}  b6 {[%clk 0:01:08]} 26. Rd2 {[%clk 0:01:19]}  Re8 {[%clk 0:01:03]} 27. Nc3 {[%clk 0:01:12]}  g5 {[%clk 0:00:56]} 28. fxg5 {[%clk 0:01:06]}  hxg5 {[%clk 0:00:56]} 29. Rf2+ {[%clk 0:01:06]}  Kg6 {[%clk 0:00:53]} 30. Re2 {[%clk 0:01:06]}  Kf7 {[%clk 0:00:43]} 31. Rf2+ {[%clk 0:01:05]}  Kg6 {[%clk 0:00:42]} 32. Re2 {[%clk 0:01:06]}  Kf7 {[%clk 0:00:37]} 33. Ne4 {[%clk 0:01:01]}  Rg8 {[%clk 0:00:36]} 34. Rf2+ {[%clk 0:00:59]}  Ke7 {[%clk 0:00:35]} 35. g4 {[%clk 0:00:55]}  Bd5 {[%clk 0:00:31]} 36. Nf6 {[%clk 0:00:46]}  Rg6 {[%clk 0:00:29]} 37. Nxd5+ {[%clk 0:00:38]}  cxd5 {[%clk 0:00:29]} 38. Rf5 {[%clk 0:00:38]}  Ke6 {[%clk 0:00:28]} 39. Kg2 {[%clk 0:00:36]}  c5 {[%clk 0:00:28]} 40. c3 {[%clk 0:00:35]}  Kd6 {[%clk 0:00:27]} 41. Kg3 {[%clk 0:00:31]}  Kc6 {[%clk 0:00:25]} 42. a4 {[%clk 0:00:28]}  d4 {[%clk 0:00:22]} 43. cxd4 {[%clk 0:00:27]}  cxd4 {[%clk 0:00:23]} 44. Kf2 {[%clk 0:00:26]}  Rh6 {[%clk 0:00:22]} 45. Ke2 {[%clk 0:00:18]}  Rxh3 {[%clk 0:00:21]} 46. b4 {[%clk 0:00:19]}  Ra3 {[%clk 0:00:19]} 47. a5 {[%clk 0:00:16]}  Ra4 {[%clk 0:00:17]} 48. axb6 {[%clk 0:00:16]}  axb6 {[%clk 0:00:17]} 49. b5+ {[%clk 0:00:16]}  Kd6 {[%clk 0:00:17]} 50. Rxg5 {[%clk 0:00:17]}  Ra3 {[%clk 0:00:17]} 51. Kd2 {[%clk 0:00:17]}  Rg3 {[%clk 0:00:17]} 52. Ke2 {[%clk 0:00:16]}  Rb3 {[%clk 0:00:16]} 53. Kd2 {[%clk 0:00:16]}  Rg3 {[%clk 0:00:16]} 54. Ke2 {[%clk 0:00:16]}  Rb3 {[%clk 0:00:16]} 55. Kd2 {[%clk 0:00:16]}  Rg3 {[%clk 0:00:16]} 1/2-1/2


[Site "https://www.chess.com"]